{"text_format":"1","workbook":"xlsx","n_sheets":3,"sheets":["Planilla Viáticos - Anexo A","Detalle de inversión - Anexo C","VALOR VIÁTICO"],"not_rendered":{"charts":0,"images":1,"macros":1,"external_links":0,"defined_names":10,"comments":0,"pivot_tables":0},"unopened":[],"bounds":{"document_bytes":16777216,"sheet_cells":100000,"rows_first":2000,"rows_last":500,"rows_between":2000,"halvings":0,"cell_chars":16384,"cell_head_chars":4096},"cells_cut":0,"cells_raw":0,"read":"whole","date_system":"1900"}

{"sheet":"Planilla Viáticos - Anexo A","index":0,"n_rows":82,"n_cols":12,"rows_kept":82,"cut":false,"hidden":false,"merged":[[44,0,44,10],[37,7,37,9],[50,7,50,8],[48,7,48,8],[45,5,45,8],[47,5,47,6],[46,5,46,6],[46,7,46,8],[47,7,47,8],[50,1,50,6],[45,1,46,4],[48,1,48,6],[47,3,47,4],[43,7,43,9],[42,7,42,9],[38,7,38,9],[0,0,0,9],[1,0,1,10],[6,1,6,2],[6,3,6,10],[3,2,3,3],[3,8,3,9],[5,4,5,10],[5,1,5,3],[7,9,7,10],[8,7,8,8],[8,9,8,10],[16,3,16,10],[18,3,18,10],[10,1,10,10],[7,2,7,6],[8,2,8,6],[7,7,7,8],[18,1,18,2],[16,1,16,2],[11,1,11,10],[12,1,12,10],[13,1,13,10],[14,1,14,10],[39,7,39,9],[40,7,40,9],[41,7,41,9],[81,7,81,10],[79,7,79,10],[77,7,77,10],[51,7,51,8],[63,1,63,10],[73,4,73,11],[73,2,73,3],[68,1,68,3],[68,7,68,10],[69,7,69,10],[70,7,70,10],[51,1,51,6],[54,1,54,11],[21,1,21,10],[22,1,22,9],[35,1,35,3],[35,4,35,6],[35,7,36,9],[35,10,36,10],[26,1,26,10],[23,1,23,9],[24,1,24,5],[25,1,25,9],[27,1,27,10],[33,1,33,10]]}
["         UNIVERSIDAD NACIONAL DE RÍO NEGRO",null,null,null,null,null,null,null,null,null,"ANEXO A"]
["SOLICITUD DE VIÁTICOS, PASAJES Y AYUDA ECONÓMICA"]
[]
["1.-","FECHA:",null,null,null,null,null,null,"Nº de Planilla"]
[]
["2.-","APELLIDO Y NOMBRES DEL BENEFICIARIO:"]
["3.-","C.U.I.L./D.N.I./L.C./L.E"]
["4.-","DEPENDENCIA:",null,null,null,null,null,"CÓDIGO:"]
["5.-","CARGO:",null,null,null,null,null,"Categoría del Cargo:",null,"ND 3 a 7 / Docentes"]
[]
["6.-","MOTIVO DE LA COMISIÓN: (Marque lo que corresponde)"]
[]
[]
[]
[]
[]
["7.-","LUGAR DE ORIGEN:"]
[]
["8.-","LUGAR O LUGARES DE DESTINO:"]
[]
[]
["9.-","Medio de transporte que utilizará: (Marque con una X )"]
[null,"TRANSPORTE PÚBLICO DE PASAJEROS"]
[null,"VEHICULO DE TRANSPORTE OFICIAL DE LA UNIVERSIDAD"]
[null,"VEHICULO DE TRANSPORTE PRIVADO:",null,null,null,null,"PROPIO:",null,"CONTRATADO:"]
[null,"Cantidad de Km.(ida y vuelta) entre lugar de salida y destino:"]
[]
["10.-","El agente beneficiario se notifica por este medio que deberá hacer entrega ante la Dirección General de Administración de la rendición de cuentas, ello en función a  lo  dispuesto por el reglamento  de  pago  de  viáticos y  pasajes.  En  el  caso  de  no  ser presentada la rendición se procederá a efectuar el descuento en los haberes de las sumas oportunamente asignadas."]
[]
[]
[null,null,"…………………………………………",null,null,null,null,"………………………………………………."]
[null,null,"  Firma del beneficiario",null,null,null,null,"Firma del superior inmediato"]
[]
["11.-","Monto de viáticos y pasajes solicitados:"]
[null,"PASAJES:"]
[null,"ORIGEN",null,null,"DESTINO",null,null,"Medio de Transporte Utilizado",null,null,"Monto pedido por pago de pasajes"]
[null,"Ciudad","Fecha","Hora salida","Ciudad","Fecha","Hora llegada"]
[null,null,null,null,null,null,null,null,null,null,0]
[null,null,null,null,null,null,null,null,null,null,0]
[null,null,null,null,null,null,null,null,null,null,0]
[null,null,null,null,null,null,null,null,null,null,0]
[null,null,null,null,null,null,null,null,null,null,0]
[null,null,null,null,null,null,null,null,null,null,0]
[null,null,null,null,null,null,null,null,null,null,0]
[]
[null,"VIÁTICOS:",null,null,null,"Monto pedido"]
[null,null,null,null,null,"Valor diario\nRes. Rectoral Nº 816/2019",null,"Subtotal Viáticos:"]
[null,"Corresponden:",null,"día/s de viático",null,{"$f":"IF(C48>0,IF(J9='VALOR VIÁTICO'!A2,'VALOR VIÁTICO'!B2,IF(J9='VALOR VIÁTICO'!A3,'VALOR VIÁTICO'!B3,IF(J9='VALOR VIÁTICO'!A4,'VALOR VIÁTICO'!B4,IF(J9='VALOR VIÁTICO'!A5,'VALOR VIÁTICO'!B5,IF(J9='VALOR VIÁTICO'!A6,'VALOR VIÁTICO'!B6,\"-\"))))))","v":false},null,{"$f":"IF(C48>0,F48*C48,\" \")","v":" "}]
[null,"SUBTOTAL VIÁTICOS",null,null,null,null,null,{"$f":"SUM(H48:I48)","v":0}]
[]
[null,null,null,null,null,null,null,"Monto pedido"]
[null,"Para pago de inscripción asistencia a Congresos, Jornadas, Etc.",null,null,null,null,null,0]
[]
[]
[null,"SE REALIZA PREVENTIVO, COMPROMISO Y DEVENGADO SEGÚN EL SIGUIENE DETALLE:"]
[null,"UNIDAD","SUB-UNI","SUB-SUBUN","FUENTE","PROGR","SUB-PROG","PROYE","ACTIV","OBRA","INCISO","TOTAL"]
["Pasajes:",null,null,null,null,null,null,null,null,null,"371",{"$f":"SUM(K38:K44)","v":0}]
["Viáticos:",null,null,null,null,null,null,null,null,null,"372",{"$f":"H49","v":0}]
["Taxis:",null,null,null,null,null,null,null,null,null,"351"]
[]
[]
[]
[]
[null,"TOTAL A PERCIBIR BENEFICIARIO",null,null,null,null,null,null,null,null,null,{"$f":"SUM(L57:L63)+H52","v":0}]
[]
[]
[]
[]
[]
["  ",null,null,null,null,null,null," Responsable preventivo, compromiso"]
[null,null,null,null,null,null,null," y devengado "]
[]
[]
[null,"RECIBÍ LA SUMA DE ",{"$f":"L64","v":0},null,{"$f":"UPPER(CONVERTIRNUM(C74, TRUE))","v":"CERO PESOS CON CERO CENTAVOS"}]
[]
[]
[]
[null,null,null,null,null,null,null,"Firma del beneficiario"]
[]
[null,null,null,null,null,"Aclaración:",null,{"$f":"E6","v":0}]
[]
[null,null,null,null,null,"Nº de documento:",null,{"$f":"D7","v":0}]

{"sheet":"Detalle de inversión - Anexo C","index":1,"n_rows":58,"n_cols":11,"rows_kept":58,"cut":false,"hidden":false,"merged":[[50,0,50,10],[49,1,49,3],[0,0,0,9],[44,8,44,9],[7,0,7,9],[3,1,3,5],[3,6,3,7],[3,8,3,9],[5,1,5,5],[5,6,5,7],[5,8,5,9],[8,9,9,9],[25,5,25,6],[25,7,25,9],[25,2,25,4],[26,0,26,1],[13,6,13,8],[14,6,14,8],[15,6,15,8],[23,0,23,10],[17,6,17,8],[45,1,45,3],[46,1,46,3],[34,0,34,1],[34,2,34,4],[26,2,26,4],[26,5,26,6],[26,7,26,9],[31,1,31,3],[30,1,30,3],[25,0,25,1],[1,0,1,9],[4,1,4,5],[4,6,4,7],[4,8,4,9],[20,0,20,1],[20,2,20,3],[20,8,20,9],[20,5,20,7],[18,6,18,8],[8,0,8,2],[8,3,8,5],[8,6,9,8],[10,6,10,8],[11,6,11,8],[16,6,16,8],[12,6,12,8],[6,1,6,2],[57,8,57,10],[56,8,56,10],[57,5,57,6],[27,0,27,9],[57,0,57,4],[56,0,56,4],[56,5,56,6],[34,5,34,8],[35,0,35,9],[31,5,31,8],[30,5,30,8],[37,0,37,1],[48,4,48,10],[51,5,51,7],[54,2,54,7]]}
["         UNIVERSIDAD NACIONAL DE RÍO NEGRO",null,null,null,null,null,null,null,null,null,"ANEXO C"]
["DETALLE DE INVERSIÓN DE VIÁTICOS"]
[]
["ÁREA SOLICITANTE",null,null,null,null,null,"CÓDIGO:"]
["PERSONA QUE VIAJA:",null,null,null,null,null,"Nº DOCUMENTO"]
["CARGO:",null,null,null,null,null,"Categoría del Cargo:",null,"Rector"]
[null,"Corresponde a la Planilla:"]
["MOTIVO DEL DETALLE DE INVERSIÓN:"]
["ORIGEN",null,null,"DESTINO",null,null,"Medio de Transporte Utilizado",null,null,"Monto pedido por pago de pasajes"]
["Ciudad","Fecha","Hora salida","Ciudad","Fecha","Hora llegada"]
[null,null,null,null,null,null,null,null,null,0]
[null,null,null,null,null,null,null,null,null,0]
[null,null,null,null,null,null,null,null,null,0]
[null,null,null,null,null,null,null,null,null,0]
[null,null,null,null,null,null,null,null,null,0]
[null,null,null,null,null,null,null,null,null,0]
[null,null,null,null,null,null,null,null,null,0]
[null,null,null,null,null,null,null,null,null,0]
[null,null,null,null,null,null,null,null,null,0]
[]
["Nº DE DÍAS OTORGADOS:",null,null,null,null,"Nº DE DÍAS EMPLEADOS:"]
[]
[]
["RESUMEN"]
[]
["1) Cargo por anticipo de viáticos:",null,{"$f":"C21*(IF(C21>0,IF(I6='VALOR VIÁTICO'!A2,'VALOR VIÁTICO'!B2,IF(I6='VALOR VIÁTICO'!A3,'VALOR VIÁTICO'!B3,IF(I6='VALOR VIÁTICO'!A4,'VALOR VIÁTICO'!B4,IF(I6='VALOR VIÁTICO'!A5,'VALOR VIÁTICO'!B5,IF(I6='VALOR VIÁTICO'!A6,'VALOR VIÁTICO'!B6,\" \")))))))","v":0},null,null,"2) Descargo por inversión:",null,{"$f":"K45","v":0}]
["3) Devolución a Tesorería (1>2):",null,{"$f":"IF(C26>H26,C26-H26,\" \")","v":" "},null,null,"4) Saldo a favor a pagar (2>1):",null,{"$f":"IF(H26>C26,H26-C26,\" \")","v":" "}]
[]
[]
[]
[null,"……………………………………………………...……………",null,null,null,"…………………………………...………………………………."]
[null,"  Firma del solicitante",null,null,null,"Vº Bº Responsable área"]
[]
[]
["APRUÉBASE la rendición de:",null,{"$f":"B5","v":0},null,null,"formulada precedentemente por la suma de pesos:",null,null,null,{"$f":"K45","v":0}]
[{"$f":"UPPER(CONVERTIRNUM(J35, TRUE))","v":"CERO PESOS CON CERO CENTAVOS"}]
[]
["AFECTACIÓN DEFINITIVA:"]
["UNIDAD","SUB-UNI","SUB-SUBUN","FUENTE","PROGR","SUB-PROG","PROYE","ACTIV","OBRA","INCISO","TOTAL"]
[null,null,null,null,null,null,null,null,null,"371",{"$f":"SUM(J9:J17)","v":0}]
[null,null,null,null,null,null,null,null,null,"372",{"$f":"I19*(IF(C19>0,IF(I4='VALOR VIÁTICO'!#REF!,'VALOR VIÁTICO'!#REF!,IF(I4='VALOR VIÁTICO'!A1,'VALOR VIÁTICO'!B1,IF(I4='VALOR VIÁTICO'!A2,'VALOR VIÁTICO'!B2,IF(I4='VALOR VIÁTICO'!A3,'VALOR VIÁTICO'!B3,IF(I4='VALOR VIÁTICO'!A4,'VALOR VIÁTICO'!B4,\" \")))))))","v":0}]
[null,null,null,null,null,null,null,null,null,"351"]
[]
[]
[null,null,null,null,null,null,null,null,"Total:",null,{"$f":"SUM(K40:K44)","v":0}]
[]
[null,"Intervino"]
[]
["Corresponde:",{"$f":"IF(C26>H26,\"DEVOLUCIÓN\",\"REINTEGRO\")","v":"REINTEGRO"},"por:",{"$f":"IF(H26>C26,H26-C26,C26-H26)","v":0},{"$f":"UPPER(CONVERTIRNUM(D49,TRUE))","v":"CERO PESOS CON CERO CENTAVOS"}]
[]
[]
[null,null,null,null,null,"Firma responsable"]
[]
[]
[{"$f":"IF(B49=\"REINTEGRO\",\"RECIBÍ LA SUMA DE\",\"SE DEVUELVE LA SUMA DE\")","v":"RECIBÍ LA SUMA DE"},{"$f":"D49","v":0},{"$f":"UPPER(CONVERTIRNUM(B55, TRUE))","v":"CERO PESOS CON CERO CENTAVOS"}]
[]
[{"$f":"B5","v":0},null,null,null,null,{"$f":"I5","v":0}]
["Apellido y Nombre del / de la beneficiario /a",null,null,null,null,"DNI",null,null,"Firma del beneficiario"]

{"sheet":"VALOR VIÁTICO","index":2,"n_rows":23,"n_cols":5,"rows_kept":23,"cut":false,"hidden":false,"merged":[[16,0,16,8],[18,0,18,8],[20,0,20,8],[22,0,22,8]]}
["Resolución Nº 812/2022","Nacional","Zona 1: \nAmérica del Sur y Central","Zona 2:\nAmérica del Norte","Zona 3: \nEuropa, África, Oceanía y Asia"]
["Rector",21750,{"$f":"102+268","v":370},{"$f":"123+330","v":453},{"$f":"117+330","v":447}]
["Vicerrector",21750,{"$f":"87+228","v":315},{"$f":"105+281","v":386},{"$f":"100+281","v":381}]
["Secretarios / Subse / Asesores",19140,{"$f":"74+194","v":268},{"$f":"89+239","v":328},{"$f":"85+239","v":324}]
["ND 1 y 2",18053,{"$f":"74+194","v":268},{"$f":"89+239","v":328},{"$f":"85+239","v":324}]
["ND 3 a 7 / Docentes",16748,{"$f":"74+194","v":268},{"$f":"89+239","v":328},{"$f":"85+239","v":324}]
[]
[]
[]
[]
[]
[]
[]
[]
[]
[]
["GRUPO A: Jefe de Gabinete de Ministros, Secretarios de Jefatura de Gabinete de Ministros, Ministros, funcionarios con rango y jerarquía de Ministros, Secretarios Ministeriales y Secretarios de la Presidencia de la Nación, Procurador del Tesoro de la Nación, Síndico General de la Nación, Jefes de los Estados Mayores Generales y del Estado Mayor Conjunto de las Fuerzas Armadas, Prefecto de la Prefectura Naval Argentina, Jefe de la Policía Federal Argentina, Director de Gendarmería Nacional, Presidente del Banco Central de la República Argentina, Presidente del Banco de la Nación Argentina."]
[]
["GRUPO B: Subsecretarios de Estado, Embajadores Extraordinarios y Plenipotenciarios, Subprocuradores del Tesoro de la Nación; Subjefes de los Estados Mayores Generales y del Estado Mayor Conjunto de las Fuerzas Armadas, Generales de División, Vicealmirantes y Brigadieres Mayores, Subdirector de Gendarmería Nacional, Subprefecto de la Prefectura Naval Argentina, Subjefe de la Policía Federal Argentina, Autoridades máximas de Empresas y Sociedades del Estado, Titulares de Organismos Descentralizados, Rectores de Universidades Nacionales."]
[]
["GRUPO C: Ministros Plenipotenciarios de Primera y Segunda Clase del Servicio Exterior de la Nación, Generales de Brigada, Contraalmirantes y Brigadieres, Vicerrectores de Universidades Nacionales y Presidentes de Academias Nacionales, Directores Nacionales y Directores Generales y Gerentes de Sociedades del Estado."]
[]
["GRUPO D: Los restantes funcionarios de la Administración Pública Nacional no comprendidos en los Grupos antes citados."]